bitfinex/quotes_ETHUSD_20230113
["timestamp","ask_amount","ask_price","bid_price","bid_amount"]
[1673594969395,30.11683443,1405.9,1405.6,4.513]
[1673594971137,31.70170648,1405.9,1405.6,4.513]
[1673594971309,30.11683443,1405.9,1405.6,4.513]
[1673594972240,31.70170648,1405.9,1405.6,4.513]
[1673594973444,29.70170648,1405.9,1405.6,4.513]
[1673594973598,18.59717333,1405.9,1405.6,4.513]
[1673594973975,8.27044163,1405.9,1405.7,1.519]
[1673594974508,1.15733163,1405.9,1405.7,1.519]
[1673594974654,1.05833163,1405.9,1405.7,1.519]
[1673594974863,2.35496524,1405.9,1405.7,4.263082]
[1673594975069,2.35496524,1405.9,1405.7,11.376952]
[1673594975333,17.1483723,1406.0,1405.8,1.513]
[1673594976697,15.56350025,1406.0,1405.8,1.513]
[1673594976910,17.1483723,1406.0,1405.8,1.51038213]
[1673594977126,15.56350025,1406.0,1405.8,1.51038213]
[1673594977433,2.35497471,1405.9,1405.7,11.439952]
[1673594977648,16.58073471,1405.9,1405.6,9.6192]
[1673594977806,24.12474025,1405.9,1405.6,1.513]
[1673594978016,2.41247402,1405.8,1405.6,1.513]
[1673594978282,7.11343,1405.8,1405.6,1.513]
[1673594978473,8.27076163,1405.8,1405.6,1.513]
[1673594978691,8.26776163,1405.8,1405.6,1.513]
[1673594978865,8.27076163,1405.8,1405.6,1.513]
[1673594979401,15.38419163,1405.8,1405.6,1.513]
[1673594979613,18.87434286,1405.8,1405.6,1.513]
[1673594979824,18.87434286,1405.8,1405.5,1.72520985]
[1673594980359,27.57264491,1405.8,1405.5,0.20620985]
[1673594980579,42.06171353,1405.8,1405.5,0.20620985]
[1673594980749,13.32027135,1405.7,1405.5,0.20620985]
[1673594980960,13.41927135,1405.7,1405.5,0.20620985]
[1673594981257,11.41927135,1405.7,1405.5,0.20620985]
[1673594983690,7.2131,1405.7,1405.5,0.20620985]
[1673594984748,2.0,1405.6,1405.5,0.20620985]
[1673594984951,2.83447728,1405.7,1405.5,0.20620985]
[1673594985200,21.34317,1405.6,1405.5,0.20620985]
[1673594985443,21.44217,1405.6,1405.5,0.20620985]
[1673594985615,23.85993473,1405.6,1405.5,0.20620985]
[1673594989895,24.91826636,1405.6,1405.5,0.20620985]
[1673594990103,23.85993473,1405.6,1405.5,0.20620985]
[1673594990354,24.91826636,1405.6,1405.5,0.20620985]
[1673594990967,23.85993473,1405.6,1405.5,0.20620985]
[1673594993414,23.85693473,1405.6,1405.5,0.20620985]
[1673594993707,23.85993473,1405.6,1405.5,0.20620985]
[1673594994230,24.91826636,1405.6,1405.5,0.20620985]
[1673594994696,23.85993473,1405.6,1405.5,0.20620985]
[1673594996017,24.91826636,1405.6,1405.5,0.20620985]
[1673594997551,24.91826636,1405.6,1405.5,0.20304056]
[1673594997860,26.27508357,1405.6,1405.5,0.20304056]
[1673594998387,26.27508704,1405.6,1405.5,0.20304056]
[1673594998570,24.91826636,1405.6,1405.5,0.20304056]
[1673594998787,26.2751009,1405.6,1405.5,0.20304056]
[1673594999164,23.85993473,1405.6,1405.5,0.20304056]
[1673594999377,21.44217,1405.6,1405.5,0.20304056]
[1673595000438,23.85748741,1405.6,1405.5,0.20304056]
[1673595001376,22.50050163,1405.6,1405.5,0.20304056]
[1673595002448,21.44217,1405.6,1405.5,0.20304056]
[1673595002711,25.45614837,1405.6,1405.5,0.20304056]
[1673595003060,26.51448,1405.6,1405.5,0.20304056]
[1673595003583,26.51448,1405.6,1405.5,0.20103974]
[1673595004441,25.45614837,1405.6,1405.5,0.20103974]
[1673595004631,26.51448,1405.6,1405.5,0.20103974]
[1673595004841,25.45614837,1405.6,1405.5,0.20103974]
[1673595005048,26.51448,1405.6,1405.5,0.20103974]
[1673595005683,27.8721059,1405.6,1405.5,0.20103974]
[1673595007533,29.5463646,1405.6,1405.5,0.20103974]
[1673595008801,27.8721059,1405.6,1405.5,0.20103974]
[1673595009014,29.54643893,1405.6,1405.5,0.20103974]
[1673595009325,27.8721059,1405.6,1405.5,0.20103974]
[1673595009641,29.54643259,1405.6,1405.5,0.20103974]
[1673595010066,27.8721059,1405.6,1405.5,0.20103974]
[1673595011159,29.54671546,1405.6,1405.5,0.20103974]
[1673595012379,31.13158751,1405.6,1405.5,0.20103974]
[1673595012578,30.07325588,1405.6,1405.5,0.20103974]
[1673595012808,31.13129443,1405.6,1405.5,0.20103974]
[1673595013009,30.07325588,1405.6,1405.5,0.20103974]
[1673595013162,31.13139288,1405.6,1405.5,0.20103974]
[1673595013371,30.07325588,1405.6,1405.5,0.20103974]
[1673595013843,24.0170135,1405.6,1405.5,0.20103974]
[1673595014085,29.45679394,1405.6,1405.5,0.20103974]
[1673595014372,24.0170135,1405.6,1405.5,0.20103974]
[1673595014580,22.34240394,1405.6,1405.5,0.20103974]
[1673595015798,13.64314189,1405.6,1405.5,0.20103974]
[1673595016138,1.15714762,1405.6,1405.5,0.20103974]
[1673595016346,1.05814762,1405.6,1405.5,0.20103974]
[1673595016525,20.47223135,1405.7,1405.5,0.20103974]
[1673595016895,2.41707957,1405.6,1405.5,0.20103974]
[1673595019867,4.41780135,1405.7,1405.5,7.31593974]
[1673595020021,2.64301967,1405.7,1405.5,7.31593974]
[1673595020230,4.00359019,1405.7,1405.5,7.31593974]
[1673595020540,4.00359019,1405.7,1405.5,16.85194666]
[1673595021414,2.64301967,1405.7,1405.5,9.73704666]
[1673595021635,4.00366311,1405.7,1405.5,7.31593974]
[1673595025799,1.05814762,1405.7,1405.5,7.31593974]
[1673595026011,4.00403919,1405.7,1405.5,7.31593974]
[1673595026827,1.05814762,1405.7,1405.5,7.31593974]
[1673595027071,2.41918269,1405.7,1405.5,9.73703766]
[1673595028102,18.33432313,1405.8,1405.6,1.506]
[1673595028103,4.4154358,1405.8,1405.6,1.506]
[1673595028314,1.05578207,1405.8,1405.7,8.63289]
[1673595028528,10.87407205,1405.9,1405.7,10.358394]
[1673595028773,10.87407205,1405.9,1405.8,1.519]
[1673595028980,12.23667359,1405.9,1405.8,1.519]
[1673595029205,10.65180154,1405.9,1405.8,1.519]
[1673595029352,1.46160154,1405.9,1405.8,1.519]
[1673595029561,1.36260154,1405.9,1405.8,1.519]
[1673595029773,1.36182435,1405.9,1405.8,2.5614394]
[1673595030025,16.28291268,1406.0,1405.8,2.5614394]
[1673595030562,1.36182868,1405.9,1405.8,2.5614394]
[1673595030752,16.28291268,1406.0,1405.8,4.0804394]
[1673595030968,13.0197,1406.0,1405.9,1.91904394]
[1673595031297,14.38153266,1406.0,1405.9,1.91904394]
[1673595031696,1.46083266,1406.0,1405.9,1.91904394]
[1673595031920,1.36183266,1406.0,1405.9,1.91904394]
[1673595033179,11.33377205,1406.1,1405.9,1.91904394]
[1673595033501,0.16441899,1406.0,1405.9,9.03188394]
[1673595034121,0.16441899,1406.0,1405.9,31.38297666]
[1673595036822,0.16441899,1406.0,1405.9,35.79124214]
[1673595037038,0.16441899,1406.0,1405.9,36.1730091]
[1673595037225,0.16441899,1406.0,1405.9,35.79124214]
[1673595037757,0.16441899,1406.0,1405.9,31.38297666]
[1673595040909,0.16441899,1406.0,1405.9,31.39889523]
[1673595043015,0.16441899,1406.0,1405.9,35.80672642]
[1673595043226,0.16441899,1406.0,1405.9,43.93782642]
[1673595044176,0.16441899,1406.0,1405.9,43.93982642]
[1673595044417,0.16441899,1406.0,1405.9,43.93782642]
[1673595045359,0.16441899,1406.0,1405.9,39.52999523]
[1673595047110,0.03515719,1406.4,1406.0,3.95299952]
[1673595047321,0.03515719,1406.4,1406.1,11.24240984]
[1673595047530,0.03515719,1406.4,1406.2,36.45353486]
[1673595047789,0.03515719,1406.4,1406.3,6.60633272]
[1673595048022,0.03515719,1406.4,1406.3,31.35621734]
[1673595048226,0.03515719,1406.4,1406.3,32.59475961]
[1673595049688,0.03515719,1406.4,1406.3,31.8860923]
[1673595050811,0.03515719,1406.4,1406.3,31.90200633]
[1673595051320,0.03515719,1406.4,1406.3,29.90200633]
[1673595051735,0.03515719,1406.4,1406.3,31.42100633]
[1673595055972,0.03515719,1406.4,1406.3,32.12967364]
[1673595056370,0.03515719,1406.4,1406.3,29.45788272]
[1673595057100,0.03515719,1406.4,1406.3,25.85155]
[1673595058398,1.25915719,1406.4,1406.2,8.69036]
[1673595058722,1.25915719,1406.4,1406.1,0.066]
[1673595058926,1.25915719,1406.4,1405.9,15.74403]
[1673595058927,13.0041,1406.3,1405.9,22.85668]
[1673595059124,13.22901572,1406.3,1405.9,24.94401272]
[1673595059583,13.22601572,1406.3,1405.9,17.83336272]
[1673595059728,15.22901572,1406.3,1405.9,17.83136272]
[1673595060088,1.52290157,1406.2,1405.9,7.11242]
[1673595060803,1.52290157,1406.2,1405.8,14.29252]
[1673595061016,3.52290157,1406.2,1405.8,14.22633]
[1673595061196,5.04190157,1406.2,1405.8,7.11307]
[1673595061404,5.04190157,1406.2,1405.7,0.066]
[1673595061405,1.518,1406.1,1405.7,0.066]
[1673595061771,13.3087,1406.0,1405.5,8.90089974]
[1673595061945,15.4077,1406.0,1405.5,8.83489974]
[1673595062300,22.52013,1406.0,1405.5,8.83465974]
[1673595062494,2.252013,1405.9,1405.5,0.20103974]
[1673595062817,9.364963,1405.9,1405.5,0.20103974]
[1673595062975,11.463963,1405.9,1405.5,0.20103974]
[1673595063188,9.463963,1405.9,1405.5,0.20103974]
[1673595063762,9.463963,1405.9,1405.5,7.31592974]
[1673595064563,0.099,1405.9,1405.5,28.97816443]
[1673595064899,13.2559,1406.0,1405.5,28.97816443]
[1673595065090,13.2559,1406.0,1405.5,30.98817937]
[1673595065309,13.2559,1406.0,1405.7,7.11379]
[1673595065548,13.2559,1406.0,1405.7,14.22768]
[1673595066181,20.36836,1406.0,1405.6,0.066]
[1673595066354,34.59319,1406.0,1405.5,23.05846974]
[1673595066961,34.59319,1406.0,1405.5,15.94358974]
[1673595067138,3.459319,1405.9,1405.5,8.82870974]
[1673595067343,10.572399,1405.9,1405.5,8.82870974]
[1673595067503,17.78168878,1405.9,1405.5,8.82870974]
[1673595068367,9.11345,1405.8,1405.5,8.82870974]
[1673595068551,9.21245,1405.8,1405.5,8.82870974]
[1673595068759,7.21245,1405.8,1405.5,8.82870974]
[1673595069192,0.099,1405.8,1405.5,15.94360974]
[1673595069402,24.89488878,1405.9,1405.5,18.81438024]
[1673595069612,17.78168878,1405.9,1405.5,15.94360974]
[1673595069861,17.78168878,1405.9,1405.5,14.43060974]
[1673595070224,3.55552878,1405.9,1405.5,14.43060974]
[1673595070441,3.45652878,1405.9,1405.5,21.54550974]
[1673595070700,3.45652878,1405.9,1405.5,24.97643824]
[1673595070901,3.45652878,1405.9,1405.5,25.92321495]
[1673595071208,13.2559,1406.0,1405.5,27.54919348]
[1673595071420,13.2559,1406.0,1405.5,28.49597019]
[1673595071855,13.2559,1406.0,1405.6,2.38518152]
[1673595072018,13.2559,1406.0,1405.7,21.34147]
[1673595072466,14.7719,1406.0,1405.7,21.34147]
[1673595072681,14.7719,1406.0,1405.7,24.04285027]
[1673595072869,13.2559,1406.0,1405.7,24.04285027]
[1673595073083,13.2559,1406.0,1405.7,27.64918299]
[1673595075424,13.2559,1406.0,1405.7,24.04285027]
[1673595076234,21.88735,1406.0,1405.6,7.18012]
[1673595076448,21.88735,1406.0,1405.6,7.11412]
[1673595076815,3.519,1405.9,1405.6,7.11412]
[1673595077127,10.6319,1405.9,1405.6,7.11412]
[1673595077300,10.7309,1405.9,1405.6,14.22851]
[1673595077496,10.7309,1405.9,1405.6,7.11412]
[1673595077913,10.7309,1405.9,1405.6,14.22851]
[1673595078124,8.7309,1405.9,1405.6,14.22851]
[1673595078328,8.7309,1405.9,1405.6,7.11412]
[1673595079484,8.7309,1405.9,1405.6,14.22851]
[1673595079730,8.7309,1405.9,1405.6,17.52288882]
[1673595080751,1.618,1405.9,1405.6,17.52288882]
[1673595081082,13.2559,1406.0,1405.6,24.63727882]
[1673595082232,13.2559,1406.0,1405.7,3.60633272]
[1673595082440,13.2559,1406.0,1405.7,20.65804387]
[1673595082803,13.2559,1406.0,1405.7,13.54423387]
[1673595082962,13.2559,1406.0,1405.7,13.54443387]
[1673595083173,13.2559,1406.0,1405.7,2.82436115]
[1673595083440,13.2559,1406.0,1405.6,7.18009]
[1673595083629,13.2559,1406.0,1405.6,3.60633272]
[1673595085605,20.36827,1406.0,1405.5,8.38443974]
[1673595085817,31.128384,1406.0,1405.6,3.0]
[1673595086134,2.0,1405.9,1405.6,3.0]
[1673595087063,2.0,1405.9,1405.6,3.002]
[1673595087273,2.0,1405.9,1405.5,22.61419974]
[1673595087274,16.22598,1405.9,1405.5,22.61419974]
[1673595087496,16.22598,1405.9,1405.5,14.43079974]
[1673595087497,27.5831584,1405.9,1405.5,14.43079974]
[1673595087694,27.57969597,1405.9,1405.5,7.31591974]
[1673595089801,28.79169597,1405.9,1405.5,7.31591974]
[1673595090432,28.79169597,1405.9,1405.5,14.43081974]
[1673595094238,25.5831584,1405.9,1405.5,14.43081974]
[1673595094586,21.43797,1405.9,1405.5,17.65267971]
[1673595094732,21.43797,1405.9,1405.5,18.59831288]
[1673595095230,21.43797,1405.9,1405.6,0.54914105]
[1673595095431,30.77027,1405.9,1405.6,0.54914105]
[1673595097601,23.65728,1405.9,1405.6,0.54914105]
[1673595098241,23.65728,1405.9,1405.6,1.61289629]
[1673595099161,24.71379009,1405.9,1405.6,1.61289629]
[1673595099894,24.71379009,1405.9,1405.6,8.72726629]
[1673595100105,24.71379009,1405.9,1405.7,0.54914105]
[1673595100536,17.60080009,1405.9,1405.7,0.54914105]
[1673595100909,1.15551009,1405.9,1405.7,0.54914105]
[1673595101188,8.16939009,1405.9,1405.7,0.54914105]
[1673595101360,1.15551009,1405.9,1405.7,0.54914105]
[1673595101575,1.05651009,1405.9,1405.7,0.54914105]
[1673595101821,2.26259561,1405.9,1405.7,0.54914105]
[1673595103555,8.16941009,1405.9,1405.7,0.54914105]
[1673595103766,8.26841009,1405.9,1405.7,0.54914105]
[1673595104689,1.15551009,1405.9,1405.7,0.54914105]
[1673595104822,1.05651009,1405.9,1405.7,0.54914105]
[1673595108287,1.05651009,1405.9,1405.7,10.47104321]
[1673595108498,26.64998441,1406.0,1405.8,3.03394173]
[1673595108749,14.31241009,1406.0,1405.7,17.10179216]
[1673595108959,14.31241009,1406.0,1405.8,2.74411187]
[1673595109177,14.31241009,1406.0,1405.7,24.21561216]
[1673595109178,15.51406122,1406.0,1405.7,24.21561216]
[1673595109352,15.51403358,1406.0,1405.8,1.03392697]
[1673595110700,14.31241009,1406.0,1405.8,1.03392697]
[1673595111125,15.51411914,1406.0,1405.8,1.03392697]
[1673595111347,14.31241009,1406.0,1405.8,1.03392697]
[1673595111590,14.31241009,1406.0,1405.8,3.71844417]
[1673595111755,14.31241009,1406.0,1405.8,16.9111572]
[1673595112913,1.15551009,1406.0,1405.8,20.51748992]
[1673595113139,2.74038214,1406.1,1405.9,3.03382728]
[1673595113346,2.74038214,1406.1,1405.9,14.2251]
[1673595113347,2.64138214,1406.1,1405.9,14.2251]
[1673595113586,2.64138214,1406.1,1406.0,1.42251]
[1673595113587,3.36644446,1406.1,1406.0,1.42251]
[1673595113804,1.78157241,1406.1,1406.0,8.53488]
[1673595114010,1.05651009,1406.1,1406.0,8.53488]
[1673595114223,15.57248214,1406.2,1406.0,8.53488]
[1673595116238,13.98761009,1406.2,1406.1,0.853488]
[1673595116379,14.71209036,1406.2,1406.0,10.54088]
[1673595116584,13.98761009,1406.2,1406.0,8.53488]
[1673595117461,15.57248214,1406.2,1406.0,8.53488]
[1673595117867,13.98761009,1406.2,1406.0,8.53488]
[1673595119853,13.98761009,1406.2,1406.1,0.853488]
[1673595120013,13.98761009,1406.2,1406.1,22.189068]
[1673595120014,0.099,1406.2,1406.1,22.189068]
[1673595120226,1.05651009,1406.3,1406.1,22.189068]
[1673595120598,1.780598,1406.3,1406.1,22.189068]
[1673595120820,1.05651009,1406.3,1406.2,2.2189068]
[1673595121184,1.05651009,1406.3,1406.2,9.3302668]
[1673595121362,17.27438738,1406.4,1406.2,9.3302668]
[1673595123288,15.68951533,1406.4,1406.2,9.3302668]
[1673595123799,17.27438738,1406.4,1406.2,14.22272]
[1673595123969,16.07423933,1406.4,1406.2,7.11136]
[1673595124186,17.27438738,1406.4,1406.2,7.11136]
[1673595126061,13.43285719,1406.4,1406.2,21.33408]
[1673595126326,0.13415719,1406.4,1406.3,30.28029072]
[1673595126483,0.03515719,1406.4,1406.3,30.28029072]
[1673595127320,0.03515719,1406.4,1406.3,31.49129072]
[1673595127533,0.02930083,1406.5,1406.4,2.0]
[1673595127790,0.02930083,1406.5,1406.4,16.63392434]
[1673595128006,0.02930083,1406.5,1406.4,34.64930632]
[1673595128177,0.02930083,1406.5,1406.4,29.03091161]
[1673595130264,0.02930083,1406.5,1406.4,40.54992869]
[1673595132526,0.02930083,1406.5,1406.4,36.14126161]
[1673595132700,0.02930083,1406.5,1406.4,40.54729293]
[1673595132912,0.02930083,1406.5,1406.4,41.75029293]
[1673595133103,0.02930083,1406.5,1406.4,43.16762755]
[1673595133312,0.02930083,1406.5,1406.4,42.45896024]
[1673595133631,0.03416937,1406.6,1406.5,21.36186453]
[1673595133845,0.03416937,1406.6,1406.5,36.20970973]
[1673595134105,0.03416937,1406.6,1406.5,36.91837704]
[1673595134899,0.03416937,1406.6,1406.5,32.51537456]
[1673595135226,0.03416937,1406.6,1406.5,31.80670725]
[1673595138074,0.03416937,1406.6,1406.5,31.82261902]
[1673595138935,0.03416937,1406.6,1406.5,30.61061902]
[1673595142568,0.03416937,1406.6,1406.5,30.61261902]
[1673595142811,0.03416937,1406.6,1406.5,30.61061902]
[1673595146614,0.03416937,1406.6,1406.5,30.61261902]
[1673595146808,0.03416937,1406.6,1406.5,30.61061902]
[1673595151940,0.03416937,1406.6,1406.5,30.60742924]
[1673595161110,9.37e-06,1406.6,1406.5,38.73616215]
[1673595161418,9.37e-06,1406.6,1406.5,39.44482954]
[1673595161633,9.37e-06,1406.6,1406.5,35.39214564]
[1673595161842,9.37e-06,1406.6,1406.5,32.37776933]
[1673595163207,9.37e-06,1406.6,1406.5,33.83405631]
[1673595163785,9.37e-06,1406.6,1406.5,31.66910202]
[1673595163999,9.37e-06,1406.6,1406.5,33.12554451]
[1673595164163,9.37e-06,1406.6,1406.5,33.12560801]
[1673595164612,9.37e-06,1406.6,1406.5,31.66910202]
[1673595165376,9.37e-06,1406.6,1406.5,33.12737063]
[1673595165677,9.37e-06,1406.6,1406.5,33.12937063]
[1673595165897,9.37e-06,1406.6,1406.5,33.12737063]
[1673595167417,9.37e-06,1406.6,1406.5,34.19112587]
[1673595169219,9.37e-06,1406.6,1406.5,36.83826498]
[1673595169573,9.37e-06,1406.6,1406.5,39.64989719]
[1673595169944,9.37e-06,1406.6,1406.5,41.24791455]
[1673595170598,9.37e-06,1406.6,1406.5,36.84064947]
[1673595173317,9.37e-06,1406.6,1406.5,34.72538799]
[1673595174045,9.37e-06,1406.6,1406.5,36.84064947]
[1673595174253,9.37e-06,1406.6,1406.5,34.72538799]
[1673595174701,9.37e-06,1406.6,1406.5,33.52138799]
[1673595175305,9.37e-06,1406.6,1406.5,34.58666116]
[1673595178499,9.37e-06,1406.6,1406.5,33.52138799]
[1673595182272,9.37e-06,1406.6,1406.5,34.58660727]
[1673595182483,9.37e-06,1406.6,1406.5,33.52138799]
[1673595183722,9.37e-06,1406.6,1406.5,34.58661621]
[1673595186040,9.37e-06,1406.6,1406.5,33.52138799]
[1673595186483,9.37e-06,1406.6,1406.5,34.58665681]
[1673595187225,0.03168161,1406.7,1406.6,0.00280029]
[1673595187441,0.03168161,1406.7,1406.6,35.00654797]
[1673595187702,0.03168161,1406.7,1406.6,36.46481658]
[1673595189455,0.03168161,1406.7,1406.6,35.39951976]
[1673595192541,0.03168161,1406.7,1406.6,37.51478124]
[1673595194394,0.03168161,1406.7,1406.6,35.39951976]
[1673595195037,0.03168161,1406.7,1406.6,36.46406309]
[1673595197034,0.03168161,1406.7,1406.6,33.65504573]
[1673595199271,0.03168161,1406.7,1406.6,35.25306309]
[1673595199859,0.03168161,1406.7,1406.6,34.18851976]
[1673595200269,0.03168161,1406.7,1406.6,35.25316592]
[1673595205814,0.03168161,1406.7,1406.6,33.65514856]
[1673595207098,0.03168161,1406.7,1406.6,35.25316592]
[1673595207254,0.03168161,1406.7,1406.6,33.65514856]
[1673595207462,0.03168161,1406.7,1406.6,35.25316592]
[1673595207922,0.03168161,1406.7,1406.6,36.76616592]
[1673595209145,0.02923497,1406.7,1406.6,36.76616592]
[1673595210016,0.02923497,1406.7,1406.6,36.76816592]
[1673595210346,0.02923497,1406.7,1406.6,36.76616592]
[1673595211077,0.02923497,1406.7,1406.6,36.76336563]
[1673595212390,0.02923497,1406.7,1406.6,35.16534827]
[1673595212828,0.02923497,1406.7,1406.6,36.76336563]
[1673595213281,0.02923497,1406.7,1406.6,36.75981753]
[1673595213495,0.02923497,1406.7,1406.6,35.16180017]
[1673595214034,0.02923497,1406.7,1406.6,36.75981753]
[1673595216548,1.26523497,1406.7,1406.6,31.02007681]
[1673595216706,1.26523497,1406.7,1406.6,26.84441329]
[1673595216922,1.26523497,1406.7,1406.6,22.38969278]
[1673595217444,1.26523497,1406.7,1406.6,15.28035278]
[1673595218742,1.26523497,1406.7,1406.6,18.28035278]
[1673595221086,1.26523497,1406.7,1406.6,25.38969278]
[1673595221376,0.02923497,1406.7,1406.6,25.38969278]
[1673595221811,1.26523497,1406.7,1406.6,25.38969278]
[1673595223064,1.26523497,1406.7,1406.6,18.28035278]
[1673595224954,0.02923497,1406.7,1406.6,18.28035278]
[1673595225375,0.02923497,1406.7,1406.6,25.38969278]
[1673595226213,1.26523497,1406.7,1406.6,18.28035278]
[1673595226638,3.4196196,1406.7,1406.6,17.21868]
[1673595226848,6.51747657,1406.7,1406.5,14.285]
[1673595227090,5.92259576,1406.7,1406.5,7.10948]
[1673595227260,5.92259576,1406.7,1406.4,14.2864]
[1673595227478,1.64876967,1406.6,1406.4,14.2204]
[1673595227920,3.16776967,1406.6,1406.4,14.2204]
[1673595228101,5.16776967,1406.6,1406.4,7.11007]
[1673595228311,3.26676967,1406.6,1406.4,7.11007]
[1673595228521,0.32667697,1406.5,1406.4,7.11007]
[1673595235479,2.11125958,1406.6,1406.4,14.22042]
[1673595237154,2.11125958,1406.6,1406.4,7.10786191]
[1673595240225,10.27714967,1406.6,1406.3,14.28698]
[1673595240443,10.27714967,1406.6,1406.2,3.066]
[1673595240444,1.507,1406.5,1406.2,3.066]
[1673595240771,0.1507,1406.4,1406.2,3.0]
[1673595241257,0.1507,1406.4,1406.2,10.11127]
[1673595241473,1.6697,1406.4,1406.2,10.11127]
[1673595243894,1.6697,1406.4,1406.2,3.0]
[1673595244116,0.16697,1406.3,1406.1,3.066]
[1673595244327,0.16697,1406.3,1406.2,7.11127]
[1673595244546,0.16697,1406.3,1406.2,10.11127]
[1673595244963,9.2425,1406.4,1406.2,19.22263]
[1673595245271,9.2425,1406.4,1406.2,26.33399]
[1673595245934,9.2425,1406.4,1406.3,2.0]
[1673595246097,9.2425,1406.4,1406.3,23.33255]
[1673595246311,0.099,1406.4,1406.3,23.33255]
[1673595246555,12.6822,1406.5,1406.3,23.33255]
[1673595246727,14.00964596,1406.5,1406.3,23.33255]
[1673595246935,14.00964596,1406.5,1406.3,21.33255]
[1673595249190,12.6822,1406.5,1406.3,21.33255]
[1673595249362,12.6822,1406.5,1406.3,22.84455]
[1673595249576,12.6822,1406.5,1406.4,0.9512261]
[1673595249773,12.6822,1406.5,1406.4,24.2822761]
[1673595249983,12.6792,1406.5,1406.4,24.2842761]
[1673595250229,12.6822,1406.5,1406.4,29.3403157]
[1673595250769,12.6822,1406.5,1406.4,34.32127212]
[1673595250770,0.099,1406.5,1406.4,34.32127212]
[1673595250948,0.02923497,1406.7,1406.4,34.32127212]
[1673595251159,0.02923497,1406.7,1406.4,34.43469218]
[1673595251402,0.02923497,1406.7,1406.5,2.0]
[1673595251657,0.02923497,1406.7,1406.6,21.32802]
[1673595256073,0.02923497,1406.7,1406.6,21.33002]
[1673595256515,0.02923497,1406.7,1406.6,21.32802]
[1673595260284,0.02524671,1406.7,1406.6,21.32802]
[1673595266755,0.02524671,1406.7,1406.6,24.42220309]
[1673595266978,0.02524671,1406.7,1406.6,25.37387934]
[1673595268941,0.02524671,1406.7,1406.6,26.57987934]
[1673595269544,0.02524671,1406.7,1406.6,30.18621206]
[1673595269912,0.02524671,1406.7,1406.6,31.55961678]
[1673595270334,0.02524671,1406.7,1406.6,29.23453581]
[1673595270547,0.02524671,1406.7,1406.6,28.02853581]
[1673595271365,0.02524671,1406.7,1406.6,28.97998103]
[1673595273545,0.02524671,1406.7,1406.6,28.02853581]
[1673595274851,1.26124671,1406.7,1406.6,21.32802]
[1673595275437,0.02524671,1406.7,1406.6,21.32802]
[1673595275855,1.26124671,1406.7,1406.6,21.22802]
[1673595277588,0.02524671,1406.7,1406.6,21.22802]
[1673595277745,1.26124671,1406.7,1406.6,21.22802]
[1673595278168,0.02524671,1406.7,1406.6,21.22802]
[1673595279968,1.26124671,1406.7,1406.6,21.22802]
[1673595280797,0.02524671,1406.7,1406.6,21.22802]
[1673595281678,0.02524671,1406.7,1406.6,22.17342077]
[1673595284607,0.02524671,1406.7,1406.6,23.23806693]
[1673595286690,0.02524671,1406.7,1406.6,31.64360144]
[1673595286902,0.02524671,1406.7,1406.6,30.04558408]
[1673595287094,0.02524671,1406.7,1406.6,31.41847264]
[1673595289670,0.02524671,1406.7,1406.6,31.78895528]
[1673595289977,0.02524671,1406.7,1406.6,38.27710532]
[1673595290381,0.02524671,1406.7,1406.6,36.16184384]
[1673595294778,0.02524671,1406.7,1406.6,38.27710532]
[1673595295035,0.02524671,1406.7,1406.6,36.16184384]
[1673595297652,0.02524671,1406.7,1406.6,37.98584384]
[1673595299013,0.02246631,1406.7,1406.6,37.98584384]
[1673595299817,0.02246631,1406.7,1406.6,36.47084384]
[1673595301811,0.02246631,1406.7,1406.6,37.53534001]
[1673595302379,0.02246631,1406.7,1406.6,37.53533974]
[1673595302587,0.02246631,1406.7,1406.6,36.47084384]
[1673595305695,0.02246631,1406.7,1406.6,35.93745382]
[1673595306234,0.02246631,1406.7,1406.6,37.53547118]
[1673595306743,1.25846631,1406.7,1406.6,27.61093667]
[1673595307310,1.25846631,1406.7,1406.6,26.23804811]
[1673595308228,1.25846631,1406.7,1406.6,22.17342077]
[1673595313337,0.02246631,1406.7,1406.6,22.17342077]
[1673595314125,1.25846631,1406.7,1406.6,22.17342077]
[1673595320279,1.25846631,1406.7,1406.6,23.23804811]
[1673595322587,1.25846631,1406.7,1406.6,22.17342077]
[1673595336895,0.02246631,1406.7,1406.6,23.23804811]
[1673595337203,0.02246631,1406.7,1406.6,26.80125681]
[1673595337580,1.25846631,1406.7,1406.6,22.17342077]
[1673595342081,1.25846631,1406.7,1406.6,23.23804811]
[1673595344470,0.02246631,1406.7,1406.6,23.23804811]
[1673595344780,1.25846631,1406.7,1406.6,23.23804811]
[1673595345211,0.02246631,1406.7,1406.6,23.23804811]
[1673595345398,1.25846631,1406.7,1406.6,23.23804811]
[1673595347523,0.02246631,1406.7,1406.6,23.23804811]
[1673595353360,1.25846631,1406.7,1406.6,23.23804811]
[1673595354981,0.02246631,1406.7,1406.6,23.23804811]
[1673595355359,1.25846631,1406.7,1406.6,23.23804811]
[1673595357139,0.02246631,1406.7,1406.6,23.23804811]
[1673595357416,0.02246631,1406.7,1406.6,24.83606547]
[1673595358290,1.25846631,1406.7,1406.6,24.83606547]
[1673595359178,0.02246631,1406.7,1406.6,24.83725995]
[1673595359395,0.02246631,1406.7,1406.6,23.77143813]
[1673595359572,0.02246631,1406.7,1406.6,24.83725565]
[1673595361002,1.25846631,1406.7,1406.6,24.83725565]
[1673595361151,0.02246631,1406.7,1406.6,24.83725565]
[1673595361362,1.25846631,1406.7,1406.6,24.83725565]
[1673595361571,0.02246631,1406.7,1406.6,24.83725565]
[1673595362139,1.25846631,1406.7,1406.6,24.83725565]
[1673595362734,1.25846631,1406.7,1406.6,23.23923829]
[1673595363290,1.25846631,1406.7,1406.6,24.83725565]
[1673595363596,0.02246631,1406.7,1406.6,23.23923829]
[1673595364129,1.25846631,1406.7,1406.6,24.83725565]
[1673595364283,1.25846631,1406.7,1406.6,23.23923829]
[1673595364491,1.25846631,1406.7,1406.6,24.83725565]
[1673595364743,1.25846631,1406.7,1406.6,23.23923829]
[1673595366224,0.02246631,1406.7,1406.6,23.23923829]
[1673595366647,1.25846631,1406.7,1406.6,23.23923829]
[1673595366803,0.02246631,1406.7,1406.6,23.23923829]
[1673595367472,1.25846631,1406.7,1406.6,23.23923829]
[1673595368723,0.02246631,1406.7,1406.6,23.23923829]
[1673595369497,0.02246631,1406.7,1406.6,24.83725565]
[1673595370658,0.02246631,1406.7,1406.6,23.23923829]
[1673595370659,1.25846631,1406.7,1406.6,23.23923829]
[1673595371279,1.25846631,1406.7,1406.6,23.77143813]
[1673595372853,0.02246631,1406.7,1406.6,24.83710918]
[1673595373932,1.25846631,1406.7,1406.6,24.83710918]
[1673595374101,0.02246631,1406.7,1406.6,24.83710918]
[1673595374500,0.15675039,1406.7,1406.6,24.83710918]